[Event "17th Memorial Lezcano Montalvo 2025"]
[Site "Gran Canaria"]
[Date "2025.04.18"]
[Round "7.55"]
[White "Mykhyeyeva, Maria"]
[Black "Peraza Concepcion, Airam"]
[Result "0-1"]
[Annotator "NA"]
[ECO "C51"]
[WhiteElo "1478"]
[BlackElo "1712"]
[PlyCount "112"]
[EventDate "2025.04.13"]
[EventType "swiss"]
[EventCountry "ESP"]
[SourceTitle "playchess.com"]
[Source "ChessBase"]
[SourceQuality "1"]
[TimeControl "5400+30"]

1. e4 {[%emt 0:00:05]} e5 {[%emt 0:01:41]} 2. Nf3 {[%emt 0:00:47]} Nc6 {[%emt 0:01:57]} 3. Bc4 {[%emt 0:01:31]} Bc5 {[%emt 0:00:56]} 4. b4 {[%emt 0:00:42]} Bxb4 {[%emt 0:12:49]} 5. c3 {[%emt 0:03:54]} Bc5 {[%emt 0:05:55]} 6. d4 {[%emt 0:01:17]} exd4 {[%emt 0:00:56]} 7. O-O {[%emt 0:00:17]} h6 {[%emt 0:07:01]} 8. h3 {[%emt 0:02:44]} Nge7 {[%emt 0:03:12]} 9. cxd4 {[%emt 0:00:51]} Bb6 {[%emt 0:07:20]} 10. Bb2 {[%emt 0:12:34]} O-O {[%emt 0:07:06]} 11. Nbd2 {[%emt 0:03:25]} d5 {[%emt 0:05:38]} 12. exd5 {[%emt 0:01:57]} Nxd5 {[%emt 0:00:52]} 13. a3 {[%emt 0:02:36]} Be6 {[%emt 0:05:09]} 14. Qb3 {[%emt 0:01:42]} Na5 {[%emt 0:01:11]} 15. Qa2 {[%emt 0:00:23]} Nxc4 {[%emt 0:00:07]} 16. Nxc4 {[%emt 0:04:04]} c6 {[%emt 0:02:23]} 17. Qb1 {[%emt 0:03:48]} Qf6 {[%emt 0:04:16]} 18. Nxb6 {[%emt 0:00:41]} axb6 {[%emt 0:00:40]} 19. Bc1 {[%emt 0:05:03]} Bxh3 {[%emt 0:01:21]} 20. gxh3 {[%emt 0:00:32]} Qxf3 {[%emt 0:00:09]} 21. Kh2 {[%emt 0:05:05]} Nf4 {[%emt 0:00:49]} 22. Bxf4 {[%emt 0:00:26]} Qxf4+ {[%emt 0:00:06]} 23. Kh1 {[%emt 0:00:20]} Qxd4 {[%emt 0:00:41]} 24. Qc1 {[%emt 0:00:49]} Ra4 {[%emt 0:01:10]} 25. Rg1 {[%emt 0:00:33]} Qe4+ {[%emt 0:00:31]} 26. Kh2 {[%emt 0:00:17]} Qf4+ {[%emt 0:00:15]} 27. Qxf4 {[%emt 0:00:19]} Rxf4 {[%emt 0:00:05]} 28. Kg3 {[%emt 0:00:38]} Ra4 {[%emt 0:00:08]} 29. Rgb1 {[%emt 0:00:31]} b5 {[%emt 0:00:13]} 30. Rb3 {[%emt 0:00:55]} Rfa8 {[%emt 0:00:12]} 31. Re1 {[%emt 0:04:05]} Rxa3 {[%emt 0:01:08]} 32. Rxa3 {[%emt 0:00:13]} Rxa3+ {[%emt 0:00:08]} 33. f3 {[%emt 0:00:20]} Kf8 {[%emt 0:00:13]} 34. Kg4 {[%emt 0:00:53]} b4 {[%emt 0:00:20]} 35. Rb1 {[%emt 0:00:18]} b3 {[%emt 0:00:06]} 36. Kf4 {[%emt 0:00:20]} c5 {[%emt 0:00:37]} 37. Ke3 {[%emt 0:00:17]} c4 {[%emt 0:00:14]} 38. Kd2 {[%emt 0:00:23]} b5 {[%emt 0:00:13]} 39. Kc3 {[%emt 0:00:24]} b2+ {[%emt 0:00:39]} 40. Kc2 {[%emt 0:01:27]} Rxf3 {[%emt 0:00:15]} 41. Kxb2 {[%emt 0:00:25]} Rb3+ {[%emt 0:00:09]} 42. Kc2 {[%emt 0:00:19]} Rxb1 {[%emt 0:00:05]} 43. Kxb1 {[%emt 0:00:12]} b4 {[%emt 0:00:03]} 44. Kc2 {[%emt 0:00:17]} b3+ {[%emt 0:00:10]} 45. Kb2 {[%emt 0:00:34]} f5 {[%emt 0:00:16]} 46. Kc3 {[%emt 0:00:20]} f4 {[%emt 0:00:07]} 47. Kxc4 {[%emt 0:01:01]} b2 {[%emt 0:00:11]} 48. Kd4 {[%emt 0:00:15]} b1=Q {[%emt 0:00:19]} 49. h4 {[%emt 0:00:18]} Qe1 {[%emt 0:00:18]} 50. Kd3 {[%emt 0:00:35]} f3 {[%emt 0:00:09]} 51. h5 {[%emt 0:00:12]} f2 {[%emt 0:00:05]} 52. Kd4 {[%emt 0:00:34]} f1=Q {[%emt 0:00:14]} 53. Kd5 {[%emt 0:00:33]} Qd3+ {[%emt 0:00:16]} 54. Kc5 {[%emt 0:00:18]} Qc1+ {[%emt 0:00:11]} 55. Kb4 {[%emt 0:00:10]} Qa6 {[%emt 0:00:44]} 56. Kb3 {[%emt 0:00:17]} Qaa3# {[%emt 0:00:52]} 0-1

[Event "17th Memorial Lezcano Montalvo 2025"]
[Site "Gran Canaria"]
[Date "2025.04.18"]
[Round "7.56"]
[White "Fernandez De La Hoz A., Carlos"]
[Black "Jerez Baez, Alvaro"]
[Result "1-0"]
[Annotator "NA RC"]
[ECO "B32"]
[WhiteElo "1687"]
[BlackElo "1583"]
[PlyCount "107"]
[EventDate "2025.04.13"]
[EventType "swiss"]
[EventCountry "ESP"]
[SourceTitle "playchess.com"]
[Source "ChessBase"]
[SourceQuality "1"]
[TimeControl "5400+30"]

1. e4 {[%emt 0:06:41]} c5 {[%emt 0:00:14]} 2. Nf3 {[%emt 0:00:27]} Nc6 {[%emt 0:00:11]} 3. d4 {[%emt 0:01:00]} cxd4 {[%emt 0:00:09]} 4. c3 {[%emt 0:00:06]} Nf6 {[%emt 0:01:49]} 5. e5 {[%emt 0:01:33]} Ng4 {[%emt 0:00:49]} 6. cxd4 {[%emt 0:00:42]} e6 {[%emt 0:02:33]} 7. Nc3 {[%emt 0:03:51]} Bb4 {[%emt 0:01:11]} 8. a3 {[%emt 0:01:23]} Qa5 {[%emt 0:04:28]} 9. Bd2 {[%emt 0:01:25]} Bxc3 {[%emt 0:01:24]} 10. bxc3 {[%emt 0:01:49]} a6 {[%emt 0:05:31]} 11. Bd3 {[%emt 0:00:31]} Nh6 {[%emt 0:12:42]} 12. O-O {[%emt 0:04:44]} Ng8 {[%emt 0:08:50]} 13. c4 {[%emt 0:06:43]} Qc7 {[%emt 0:00:45]} 14. Re1 {[%emt 0:02:44]} Nge7 {[%emt 0:02:00]} 15. Bf4 {[%emt 0:07:47]} Na5 {[%emt 0:02:26]} 16. Rc1 {[%emt 0:04:07]} h6 {[%emt 0:04:51]} 17. d5 {[%emt 0:04:53]} g5 {[%emt 0:15:32]} 18. Bg3 {[%emt 0:06:31]} g4 {[%emt 0:02:25]} 19. Nh4 {[%emt 0:06:41]} Qc5 {[%emt 0:01:54]} 20. d6 {[%emt 0:03:11]} Qxa3 {[%emt 0:05:01]} 21. dxe7 {[%emt 0:03:02]} Nc6 {[%emt 0:03:37]} 22. Ra1 {[%emt 0:04:04]} Qxe7 {[%emt 0:00:30]} 23. Qxg4 {[%emt 0:01:32]} Nb4 {[%emt 0:02:41]} 24. Be4 {[%emt 0:03:09]} h5 {[%emt 0:04:27]} 25. Qf3 {[%emt 0:06:42]} Rb8 {[%emt 0:02:38]} 26. Ng6 {[%emt 0:00:35]} fxg6 {[%emt 0:01:14]} 27. Bxg6+ {[%emt 0:00:58]} Kd8 {[%emt 0:00:11]} 28. Qe4 {[%emt 0:03:02]} h4 {[%emt 0:00:41]} 29. Bf4 {[%emt 0:01:44]} b6 {[%emt 0:04:07]} 30. Qe3 {[%emt 0:00:44]} Kc7 {[%emt 0:00:49]} 31. Be4 {[%emt 0:04:57]} Bb7 {[%emt 0:00:26]} 32. Rab1 {[%emt 0:01:24]} Bxe4 {[%emt 0:01:21]} 33. Qxe4 {[%emt 0:00:23]} Rhg8 {[%emt 0:00:23]} 34. h3 {[%emt 0:01:09]} Rbf8 {[%emt 0:00:38]} 35. Be3 {[%emt 0:00:35]} Rf7 {[%emt 0:02:19]} 36. Qd4 {[%emt 0:02:32]} Qc5 {[%emt 0:02:40]} 37. Qd6+ {[%emt 0:00:09]} Qxd6 {[%emt 0:00:18]} 38. exd6+ {[%emt 0:00:06]} Kxd6 {[%emt 0:00:18]} 39. Rxb4 {[%emt 0:00:27]} a5 {[%emt 0:00:46]} 40. Rxb6+ {[%emt 0:01:13]} Kc7 {[%emt 0:00:13]} 41. Reb1 {[%emt 0:01:36]} Ra8 {[%emt 0:01:25]} 42. R6b2 {[%emt 0:01:00]} Kc8 {[%emt 0:00:32]} 43. Rb7 {[%emt 0:00:51]} a4 {[%emt 0:00:47]} 44. Ra7 {[%emt 0:00:22]} Rxa7 {[%emt 0:00:06]} 45. Bxa7 {[%emt 0:00:04]} Rf4 {[%emt 0:00:20]} 46. Rb4 {[%emt 0:00:59]} a3 {[%emt 0:00:26]} 47. Ra4 {[%emt 0:00:22]} Re4 {[%emt 0:00:08]} 48. Be3 {[%emt 0:00:14]} d5 {[%emt 0:00:13]} 49. Rxa3 {[%emt 0:00:12]} Rxc4 {[%emt 0:00:10]} 50. Kf1 {[%emt 0:00:30]} e5 {[%emt 0:00:28]} 51. Ke2 {[%emt 0:00:29]} d4 {[%emt 0:00:35]} 52. Bg5 {[%emt 0:00:11]} e4 {[%emt 0:00:35]} 53. Kd2 {[%emt 0:00:37]} d3 {[%emt 0:01:37]} 54. Rc3 {[%emt 0:00:08]} 1-0